[Event "*** Titled Tuesday Blitz"]
[Site "Chess.com"]
[Date "2020.11.10"]
[Round "1"]
[White "Leo_C"]
[Black "NikolaGry"]
[Result "0-1"]
[WhiteElo "2306"]
[BlackElo "2627"]
[TimeControl "180+1"]
[EndTime "10:06:28 PST"]
[Termination "NikolaGry won by resignation"]

1. d4 {[%clk 0:03:00.2]} 1... d5 {[%clk 0:02:59.4]} 2. c4 {[%clk 0:02:56.8]}
2... Nc6 {[%clk 0:02:59.5]} 3. Nc3 {[%clk 0:02:54.8]} 3... dxc4 {[%clk
0:02:59.2]} 4. Nf3 {[%clk 0:02:54.7]} 4... Nf6 {[%clk 0:02:58.4]} 5. Bg5 {[%clk
0:02:54.5]} 5... h6 {[%clk 0:02:57.8]} 6. Bxf6 {[%clk 0:02:51.7]} 6... exf6
{[%clk 0:02:57.8]} 7. e3 {[%clk 0:02:49.9]} 7... Na5 {[%clk 0:02:56.1]} 8. Qa4+
{[%clk 0:02:45]} 8... c6 {[%clk 0:02:56]} 9. b4 {[%clk 0:02:43.5]} 9... cxb3
{[%clk 0:02:39]} 10. axb3 {[%clk 0:02:41.7]} 10... Be6 {[%clk 0:02:36.4]} 11.
Nd2 {[%clk 0:02:17.1]} 11... Qb6 {[%clk 0:02:01.6]} 12. Qxa5 {[%clk 0:01:48.4]}
12... Qxa5 {[%clk 0:02:00.4]} 13. Rxa5 {[%clk 0:01:49.3]} 13... Bb4 {[%clk
0:02:00.2]} 14. Rc5 {[%clk 0:01:45]} 14... Bxc5 {[%clk 0:01:59.6]} 15. dxc5
{[%clk 0:01:43.2]} 15... O-O-O {[%clk 0:01:57.1]} 16. Bc4 {[%clk 0:01:42.7]}
16... b5 {[%clk 0:01:31.5]} 17. Bxe6+ {[%clk 0:01:35.6]} 17... fxe6 {[%clk
0:01:31.2]} 18. Nde4 {[%clk 0:01:32.3]} 18... Rd3 {[%clk 0:01:17.4]} 19. Ke2
{[%clk 0:01:28.2]} 19... Rhd8 {[%clk 0:01:15.9]} 20. Rc1 {[%clk 0:01:20]} 20...
b4 {[%clk 0:00:55.2]} 21. Nd6+ {[%clk 0:00:49.8]} 21... R8xd6 {[%clk 0:00:51.5]}
22. cxd6 {[%clk 0:00:49.8]} 22... Rxc3 {[%clk 0:00:51.7]} 23. Ra1 {[%clk
0:00:48.5]} 23... Kd7 {[%clk 0:00:46.9]} 24. Rxa7+ {[%clk 0:00:47.4]} 24... Kxd6
{[%clk 0:00:47.1]} 25. Rxg7 {[%clk 0:00:45.7]} 25... Rxb3 {[%clk 0:00:47.2]} 26.
Rg6 {[%clk 0:00:46.3]} 26... c5 {[%clk 0:00:45.2]} 27. Rxh6 {[%clk 0:00:46.4]}
27... c4 {[%clk 0:00:42.8]} 28. Rh4 {[%clk 0:00:44.4]} 28... Rb2+ {[%clk
0:00:37.3]} 29. Kf3 {[%clk 0:00:43]} 29... c3 {[%clk 0:00:34.2]} 30. Rc4 {[%clk
0:00:42.6]} 30... c2 {[%clk 0:00:34.2]} 31. h4 {[%clk 0:00:41.7]} 31... b3
{[%clk 0:00:34.1]} 32. h5 {[%clk 0:00:42.1]} 32... Rb1 {[%clk 0:00:34.1]} 33. h6
{[%clk 0:00:37]} 33... c1=Q {[%clk 0:00:33.9]} 34. h7 {[%clk 0:00:33.3]} 34...
Qh1 {[%clk 0:00:31.2]} 0-1

[Event "*** Titled Tuesday Blitz"]
[Site "Chess.com"]
[Date "2020.11.10"]
[Round "1"]
[White "Firegrizzly"]
[Black "Blitzking642"]
[Result "1-0"]
[WhiteElo "2591"]
[BlackElo "2270"]
[TimeControl "180+1"]
[EndTime "10:06:30 PST"]
[Termination "Firegrizzly won on time"]

1. d4 {[%clk 0:02:59.9]} 1... Nf6 {[%clk 0:02:59.5]} 2. Nf3 {[%clk 0:03:00.8]}
2... e6 {[%clk 0:02:59.7]} 3. Bg5 {[%clk 0:03:00.5]} 3... b6 {[%clk 0:02:55.8]}
4. Nbd2 {[%clk 0:03:00.1]} 4... Bb7 {[%clk 0:02:55.4]} 5. e4 {[%clk 0:02:58.2]}
5... h6 {[%clk 0:02:53]} 6. Bxf6 {[%clk 0:02:57.9]} 6... Qxf6 {[%clk 0:02:53]}
7. c3 {[%clk 0:02:58]} 7... d6 {[%clk 0:02:44.9]} 8. g3 {[%clk 0:02:57.3]} 8...
Nd7 {[%clk 0:02:43.9]} 9. Bg2 {[%clk 0:02:57]} 9... e5 {[%clk 0:02:43.6]} 10.
O-O {[%clk 0:02:56.1]} 10... g6 {[%clk 0:02:40.4]} 11. a4 {[%clk 0:02:55.7]}
11... a6 {[%clk 0:02:39.4]} 12. a5 {[%clk 0:02:49.7]} 12... b5 {[%clk 0:02:36]}
13. d5 {[%clk 0:02:49.2]} 13... Bg7 {[%clk 0:02:06.1]} 14. c4 {[%clk 0:02:48.3]}
14... c6 {[%clk 0:01:59.9]} 15. b4 {[%clk 0:02:42.3]} 15... cxd5 {[%clk
0:01:51.5]} 16. cxd5 {[%clk 0:02:40.2]} 16... O-O {[%clk 0:01:48.8]} 17. Rc1
{[%clk 0:02:39.9]} 17... Rfc8 {[%clk 0:01:47.4]} 18. Qe2 {[%clk 0:02:39]} 18...
Qd8 {[%clk 0:01:42.7]} 19. Qe3 {[%clk 0:02:32.2]} 19... Rxc1 {[%clk 0:01:35]}
20. Rxc1 {[%clk 0:02:31.5]} 20... Rc8 {[%clk 0:01:35.4]} 21. Rxc8 {[%clk
0:02:27.6]} 21... Qxc8 {[%clk 0:01:35.2]} 22. Qa7 {[%clk 0:02:23.8]} 22... Qa8
{[%clk 0:01:24.9]} 23. Qxa8+ {[%clk 0:02:23.2]} 23... Bxa8 {[%clk 0:01:24.5]}
24. Bh3 {[%clk 0:02:22.8]} 24... f5 {[%clk 0:01:05.5]} 25. exf5 {[%clk
0:02:19.6]} 25... Bxd5 {[%clk 0:01:04]} 26. fxg6 {[%clk 0:02:19.2]} 26... Nb8
{[%clk 0:00:45.5]} 27. Bc8 {[%clk 0:02:00.5]} 27... e4 {[%clk 0:00:43.1]} 28.
Nh4 {[%clk 0:02:00.7]} 28... Bc3 {[%clk 0:00:42.5]} 29. Nf1 {[%clk 0:02:00.6]}
29... Bxb4 {[%clk 0:00:42.1]} 30. Nf5 {[%clk 0:01:59.8]} 30... Nc6 {[%clk
0:00:35.7]} 31. Bxa6 {[%clk 0:01:55.6]} 31... Be6 {[%clk 0:00:29]} 32. N1e3
{[%clk 0:01:45.8]} 32... d5 {[%clk 0:00:25.1]} 33. Bxb5 {[%clk 0:01:44.6]} 33...
Nxa5 {[%clk 0:00:25]} 34. Nd4 {[%clk 0:01:40]} 34... Bc8 {[%clk 0:00:12]} 35.
Nxd5 {[%clk 0:01:39.1]} 35... Bc5 {[%clk 0:00:12.2]} 36. Nc2 {[%clk 0:01:31.7]}
36... Kg7 {[%clk 0:00:11.9]} 37. Be8 {[%clk 0:01:30.4]} 37... Nc4 {[%clk
0:00:10.5]} 38. h4 {[%clk 0:01:24.2]} 38... h5 {[%clk 0:00:05.8]} 39. Nce3
{[%clk 0:01:16.8]} 39... Ne5 {[%clk 0:00:04.2]} 40. Nf4 {[%clk 0:01:15.5]} 40...
Nxg6 {[%clk 0:00:02]} 41. Bxg6 {[%clk 0:01:14.2]} 41... Bg4 {[%clk 0:00:01.1]}
42. Bxh5 {[%clk 0:01:12.4]} 1-0

[Event "*** Titled Tuesday Blitz"]
[Site "Chess.com"]
[Date "2020.11.10"]
[Round "1"]
[White "LamaChampetre"]
[Black "elohunter1999"]
[Result "0-1"]
[WhiteElo "2167"]
[BlackElo "2537"]
[TimeControl "180+1"]
[EndTime "10:06:32 PST"]
[Termination "elohunter1999 won by resignation"]

1. d4 {[%clk 0:02:59.5]} 1... Nf6 {[%clk 0:02:59.4]} 2. c4 {[%clk 0:02:58.9]}
2... e5 {[%clk 0:02:59.3]} 3. dxe5 {[%clk 0:02:58.4]} 3... Ng4 {[%clk
0:02:59.4]} 4. e3 {[%clk 0:02:57.9]} 4... Nxe5 {[%clk 0:02:59]} 5. Nc3 {[%clk
0:02:57.5]} 5... Bb4 {[%clk 0:02:52.6]} 6. f4 {[%clk 0:02:48.5]} 6... Ng6 {[%clk
0:02:49.6]} 7. Bd3 {[%clk 0:02:44.7]} 7... Bxc3+ {[%clk 0:02:42.9]} 8. bxc3
{[%clk 0:02:44.3]} 8... O-O {[%clk 0:02:43]} 9. Ne2 {[%clk 0:02:34.4]} 9... Nc6
{[%clk 0:02:42.9]} 10. O-O {[%clk 0:02:33.6]} 10... d6 {[%clk 0:02:41.9]} 11.
Nd4 {[%clk 0:02:33.2]} 11... Bd7 {[%clk 0:02:37.2]} 12. Qh5 {[%clk 0:02:29.7]}
12... Re8 {[%clk 0:01:48.8]} 13. f5 {[%clk 0:01:54]} 13... Nge5 {[%clk
0:01:18.2]} 14. f6 {[%clk 0:00:52.1]} 14... Ng6 {[%clk 0:01:18.1]} 15. fxg7
{[%clk 0:00:36.2]} 15... Nce5 {[%clk 0:01:14.8]} 16. Bf5 {[%clk 0:00:18.9]}
16... Qh4 {[%clk 0:00:59.1]} 17. Bxg6 {[%clk 0:00:16.3]} 17... Nxg6 {[%clk
0:00:57.2]} 18. Qf3 {[%clk 0:00:16]} 18... Ne5 {[%clk 0:00:53.9]} 19. Qf4 {[%clk
0:00:14.2]} 19... Qxf4 {[%clk 0:00:51.9]} 20. exf4 {[%clk 0:00:15.1]} 20... Nxc4
{[%clk 0:00:51.9]} 21. f5 {[%clk 0:00:15.1]} 21... Kxg7 {[%clk 0:00:48.6]} 22.
f6+ {[%clk 0:00:14.5]} 22... Kh8 {[%clk 0:00:46.6]} 23. Bh6 {[%clk 0:00:14]}
23... Re4 {[%clk 0:00:43.8]} 24. Bg7+ {[%clk 0:00:14.9]} 24... Kg8 {[%clk
0:00:43.7]} 25. Rae1 {[%clk 0:00:14.2]} 25... Rae8 {[%clk 0:00:43.1]} 26. Rxe4
{[%clk 0:00:13.7]} 26... Rxe4 {[%clk 0:00:44]} 27. Nf5 {[%clk 0:00:12.8]} 27...
Bxf5 {[%clk 0:00:41.7]} 28. Rxf5 {[%clk 0:00:13.7]} 28... Re1+ {[%clk
0:00:41.5]} 29. Kf2 {[%clk 0:00:13.5]} 29... Rf1+ {[%clk 0:00:42]} 30. Kxf1
{[%clk 0:00:11.9]} 30... Ne3+ {[%clk 0:00:42.7]} 31. Kf2 {[%clk 0:00:11.6]}
31... Nxf5 {[%clk 0:00:43.6]} 32. g4 {[%clk 0:00:09.7]} 32... Nxg7 {[%clk
0:00:43.8]} 33. fxg7 {[%clk 0:00:10.6]} 33... Kxg7 {[%clk 0:00:44.7]} 0-1

[Event "*** Titled Tuesday Blitz"]
[Site "Chess.com"]
[Date "2020.11.10"]
[Round "1"]
[White "guillembaches"]
[Black "Grandelicious"]
[Result "0-1"]
[WhiteElo "2402"]
[BlackElo "2803"]
[TimeControl "180+1"]
[EndTime "10:06:34 PST"]
[Termination "Grandelicious won on time"]

1. e4 {[%clk 0:02:58]} 1... c6 {[%clk 0:02:59.6]} 2. d4 {[%clk 0:02:57.1]} 2...
d5 {[%clk 0:03:00.1]} 3. exd5 {[%clk 0:02:58]} 3... cxd5 {[%clk 0:03:01]} 4. Bd3
{[%clk 0:02:58.3]} 4... Nf6 {[%clk 0:02:59.8]} 5. c3 {[%clk 0:02:58.4]} 5... Bg4
{[%clk 0:03:00.1]} 6. Qb3 {[%clk 0:02:57.8]} 6... Qc7 {[%clk 0:02:57.4]} 7. h3
{[%clk 0:02:55]} 7... Bh5 {[%clk 0:02:55.9]} 8. Nd2 {[%clk 0:02:52.2]} 8... e6
{[%clk 0:02:51.1]} 9. Ngf3 {[%clk 0:02:52]} 9... Bd6 {[%clk 0:02:51.6]} 10. O-O
{[%clk 0:02:47.5]} 10... Nc6 {[%clk 0:02:50.2]} 11. Re1 {[%clk 0:02:44.6]} 11...
Bg6 {[%clk 0:02:42.9]} 12. Be2 {[%clk 0:02:32.5]} 12... h6 {[%clk 0:02:37.9]}
13. Nf1 {[%clk 0:02:32]} 13... Ne4 {[%clk 0:02:36.3]} 14. Be3 {[%clk 0:02:25.6]}
14... O-O {[%clk 0:02:33.1]} 15. N3d2 {[%clk 0:02:13.8]} 15... Rae8 {[%clk
0:02:24.6]} 16. Nxe4 {[%clk 0:02:11.7]} 16... dxe4 {[%clk 0:02:25.5]} 17. c4
{[%clk 0:01:54.8]} 17... Kh8 {[%clk 0:02:13.6]} 18. Rad1 {[%clk 0:01:34.2]}
18... f5 {[%clk 0:02:09.9]} 19. d5 {[%clk 0:01:34.3]} 19... exd5 {[%clk
0:02:04.6]} 20. cxd5 {[%clk 0:01:30.6]} 20... Ne5 {[%clk 0:01:58.9]} 21. Bxa7
{[%clk 0:01:22.1]} 21... f4 {[%clk 0:01:59.2]} 22. Bb5 {[%clk 0:01:11.9]} 22...
Ra8 {[%clk 0:01:49.7]} 23. Bd4 {[%clk 0:01:07.8]} 23... e3 {[%clk 0:01:32.9]}
24. fxe3 {[%clk 0:00:44.6]} 24... f3 {[%clk 0:01:33.2]} 25. e4 {[%clk
0:00:40.2]} 25... fxg2 {[%clk 0:01:27.6]} 26. Kxg2 {[%clk 0:00:41.1]} 26... Nf3
{[%clk 0:01:13]} 27. Qe3 {[%clk 0:00:24.2]} 27... Nxe1+ {[%clk 0:01:06.3]} 28.
Rxe1 {[%clk 0:00:23.8]} 28... Bf4 {[%clk 0:01:04.1]} 29. Qc3 {[%clk 0:00:20]}
29... Qe7 {[%clk 0:01:02.2]} 30. e5 {[%clk 0:00:13.2]} 30... Qg5+ {[%clk
0:01:00.6]} 31. Kh1 {[%clk 0:00:13.3]} 31... Rac8 {[%clk 0:00:51.8]} 32. Qb3
{[%clk 0:00:09.9]} 32... Rc2 {[%clk 0:00:50.2]} 33. Be2 {[%clk 0:00:05.7]} 33...
Be4+ {[%clk 0:00:49.2]} 0-1

[Event "*** Titled Tuesday Blitz"]
[Site "Chess.com"]
[Date "2020.11.10"]
[Round "1"]
[White "Grieve72"]
[Black "anon102030"]
[Result "0-1"]
[WhiteElo "2375"]
[BlackElo "2729"]
[TimeControl "180+1"]
[EndTime "10:06:34 PST"]
[Termination "anon102030 won by checkmate"]

1. d4 {[%clk 0:02:58.6]} 1... Nf6 {[%clk 0:02:57.8]} 2. Bg5 {[%clk 0:02:58.9]}
2... Ne4 {[%clk 0:02:56.3]} 3. Bf4 {[%clk 0:02:59.1]} 3... d5 {[%clk 0:02:56.5]}
4. e3 {[%clk 0:02:59.2]} 4... e6 {[%clk 0:02:55.5]} 5. Bd3 {[%clk 0:02:58.2]}
5... Bd6 {[%clk 0:02:55.7]} 6. Ne2 {[%clk 0:02:58.6]} 6... Nf6 {[%clk
0:02:50.2]} 7. O-O {[%clk 0:02:48.8]} 7... c5 {[%clk 0:02:46.4]} 8. c3 {[%clk
0:02:43.1]} 8... Nc6 {[%clk 0:02:45.8]} 9. Nd2 {[%clk 0:02:42.4]} 9... O-O
{[%clk 0:02:38.4]} 10. Nf3 {[%clk 0:02:36.4]} 10... Bxf4 {[%clk 0:02:36.7]} 11.
Nxf4 {[%clk 0:02:35.5]} 11... Re8 {[%clk 0:02:35.5]} 12. Bc2 {[%clk 0:02:28.6]}
12... e5 {[%clk 0:02:32.7]} 13. dxe5 {[%clk 0:02:28.5]} 13... Nxe5 {[%clk
0:02:33.6]} 14. Nxe5 {[%clk 0:02:27.6]} 14... Rxe5 {[%clk 0:02:34.5]} 15. b4
{[%clk 0:02:18.4]} 15... b6 {[%clk 0:02:30.2]} 16. a4 {[%clk 0:02:16.9]} 16...
Bf5 {[%clk 0:02:23.6]} 17. a5 {[%clk 0:02:06.3]} 17... Rc8 {[%clk 0:02:15.8]}
18. axb6 {[%clk 0:01:46.7]} 18... axb6 {[%clk 0:02:16.7]} 19. Bxf5 {[%clk
0:01:40.1]} 19... Rxf5 {[%clk 0:02:15.8]} 20. Qd3 {[%clk 0:01:40.5]} 20... Re5
{[%clk 0:02:14.8]} 21. Ra7 {[%clk 0:01:35.7]} 21... g5 {[%clk 0:01:55.8]} 22.
Ne2 {[%clk 0:01:25.3]} 22... Ne4 {[%clk 0:01:44.8]} 23. Ng3 {[%clk 0:01:11.3]}
23... Qd6 {[%clk 0:01:34.9]} 24. Rd1 {[%clk 0:01:03.9]} 24... Nxg3 {[%clk
0:01:29.4]} 25. hxg3 {[%clk 0:01:03.9]} 25... cxb4 {[%clk 0:01:29.2]} 26. cxb4
{[%clk 0:00:58.1]} 26... Qxb4 {[%clk 0:01:30.1]} 27. Qe2 {[%clk 0:00:45.6]}
27... Qe4 {[%clk 0:01:14.6]} 28. Qa6 {[%clk 0:00:39.4]} 28... Rc6 {[%clk
0:01:06]} 29. Rxf7 {[%clk 0:00:30.5]} 29... Qc2 {[%clk 0:00:39.8]} 30. Qb7
{[%clk 0:00:08.5]} 30... Qxd1+ {[%clk 0:00:38.7]} 31. Kh2 {[%clk 0:00:09]} 31...
Rh6# {[%clk 0:00:38.2]} 0-1

[Event "*** Titled Tuesday Blitz"]
[Site "Chess.com"]
[Date "2020.11.10"]
[Round "1"]
[White "Lady_Nika"]
[Black "Rud_Makarian"]
[Result "0-1"]
[WhiteElo "2404"]
[BlackElo "2822"]
[TimeControl "180+1"]
[EndTime "10:06:35 PST"]
[Termination "Rud_Makarian won by checkmate"]

1. d4 {[%clk 0:02:49.5]} 1... Nf6 {[%clk 0:02:59.7]} 2. e3 {[%clk 0:02:49.3]}
2... g6 {[%clk 0:03:00]} 3. Bd3 {[%clk 0:02:48.3]} 3... Bg7 {[%clk 0:03:00.9]}
4. f4 {[%clk 0:02:48.1]} 4... b6 {[%clk 0:02:59.9]} 5. Nf3 {[%clk 0:02:48.4]}
5... Bb7 {[%clk 0:03:00.1]} 6. Nbd2 {[%clk 0:02:48.4]} 6... O-O {[%clk 0:03:01]}
7. Qe2 {[%clk 0:02:48.5]} 7... d6 {[%clk 0:03:01.4]} 8. O-O {[%clk 0:02:48.6]}
8... c5 {[%clk 0:03:01.7]} 9. c3 {[%clk 0:02:48.6]} 9... Nbd7 {[%clk 0:03:01.8]}
10. e4 {[%clk 0:02:48.9]} 10... e5 {[%clk 0:02:56.7]} 11. fxe5 {[%clk
0:02:47.2]} 11... dxe5 {[%clk 0:02:57.6]} 12. d5 {[%clk 0:02:47.4]} 12... Ne8
{[%clk 0:02:57.8]} 13. Nc4 {[%clk 0:02:45.1]} 13... b5 {[%clk 0:02:53.3]} 14.
Na3 {[%clk 0:02:39.9]} 14... a6 {[%clk 0:02:51.8]} 15. Bg5 {[%clk 0:02:39.3]}
15... f6 {[%clk 0:02:50.8]} 16. Bh4 {[%clk 0:02:39.4]} 16... Nd6 {[%clk
0:02:51.4]} 17. b3 {[%clk 0:02:36.8]} 17... Qa5 {[%clk 0:02:51.2]} 18. Nb1
{[%clk 0:02:36]} 18... Rae8 {[%clk 0:02:49.2]} 19. Be1 {[%clk 0:02:33.2]} 19...
f5 {[%clk 0:02:48.8]} 20. c4 {[%clk 0:02:33.1]} 20... Qd8 {[%clk 0:02:48.7]} 21.
Nbd2 {[%clk 0:02:32.4]} 21... b4 {[%clk 0:02:45.8]} 22. Bh4 {[%clk 0:02:32.1]}
22... Bf6 {[%clk 0:02:45.4]} 23. Bxf6 {[%clk 0:02:31.4]} 23... Qxf6 {[%clk
0:02:46.3]} 24. Rf2 {[%clk 0:02:25.9]} 24... f4 {[%clk 0:02:46.3]} 25. Raf1
{[%clk 0:02:25.4]} 25... a5 {[%clk 0:02:46.9]} 26. h3 {[%clk 0:02:24.4]} 26...
g5 {[%clk 0:02:46.9]} 27. Nh2 {[%clk 0:02:24.5]} 27... Qg6 {[%clk 0:02:46.5]}
28. Rf3 {[%clk 0:02:20.8]} 28... h5 {[%clk 0:02:45.6]} 29. g3 {[%clk 0:02:20.6]}
29... g4 {[%clk 0:02:06.8]} 30. hxg4 {[%clk 0:02:15.8]} 30... hxg4 {[%clk
0:02:07.7]} 31. R3f2 {[%clk 0:02:05.9]} 31... f3 {[%clk 0:02:03.4]} 32. Qe3
{[%clk 0:02:05.6]} 32... Kg7 {[%clk 0:02:03.8]} 33. Re1 {[%clk 0:01:55.6]} 33...
Rh8 {[%clk 0:01:59.9]} 34. Ndf1 {[%clk 0:01:55.5]} 34... Rh3 {[%clk 0:01:58.3]}
35. Nxf3 {[%clk 0:01:40.5]} 35... gxf3 {[%clk 0:01:55.5]} 36. Rxf3 {[%clk
0:01:38.8]} 36... Reh8 {[%clk 0:01:54.7]} 37. Kg2 {[%clk 0:01:36.2]} 37... Qh5
{[%clk 0:01:37.8]} 38. Qf2 {[%clk 0:01:07.3]} 38... Bc8 {[%clk 0:01:27.3]} 39.
Bc2 {[%clk 0:00:46.7]} 39... Rh1 {[%clk 0:01:26.9]} 40. g4 {[%clk 0:00:38.8]}
40... Qh2+ {[%clk 0:01:02.3]} 41. Nxh2 {[%clk 0:00:36.6]} 41... R8xh2+ {[%clk
0:01:03.2]} 42. Kg3 {[%clk 0:00:36.7]} 42... Rxf2 {[%clk 0:01:03.9]} 43. Kxf2
{[%clk 0:00:36.4]} 43... Rh2+ {[%clk 0:01:03.8]} 44. Kg3 {[%clk 0:00:34.9]}
44... Rxc2 {[%clk 0:01:04.7]} 45. g5 {[%clk 0:00:32.6]} 45... Rxa2 {[%clk
0:00:59.6]} 46. Ref1 {[%clk 0:00:31.4]} 46... Nxe4+ {[%clk 0:00:58.8]} 47. Kh4
{[%clk 0:00:31.2]} 47... Rh2+ {[%clk 0:00:57.7]} 48. Kg4 {[%clk 0:00:31.5]}
48... Ndf6# {[%clk 0:00:57.9]} 0-1

[Event "*** Titled Tuesday Blitz"]
[Site "Chess.com"]
[Date "2020.11.10"]
[Round "1"]
[White "picturesquecheck"]
[Black "Chessdreamer2020"]
[Result "0-1"]
[WhiteElo "2104"]
[BlackElo "2514"]
[TimeControl "180+1"]
[EndTime "10:06:35 PST"]
[Termination "Chessdreamer2020 won by checkmate"]

1. e4 {[%clk 0:03:00.9]} 1... d6 {[%clk 0:03:00.5]} 2. d4 {[%clk 0:03:00.3]}
2... Nf6 {[%clk 0:03:01]} 3. Nc3 {[%clk 0:03:00.5]} 3... e5 {[%clk 0:03:01.7]}
4. Nf3 {[%clk 0:03:00.6]} 4... Nbd7 {[%clk 0:03:01.4]} 5. Bc4 {[%clk 0:03:00.2]}
5... Be7 {[%clk 0:03:01.9]} 6. a4 {[%clk 0:02:58.3]} 6... O-O {[%clk 0:03:02.1]}
7. O-O {[%clk 0:02:58]} 7... a5 {[%clk 0:03:02.5]} 8. h3 {[%clk 0:02:56.6]} 8...
c6 {[%clk 0:03:03]} 9. Bb3 {[%clk 0:02:55.7]} 9... h6 {[%clk 0:02:59.8]} 10. Re1
{[%clk 0:02:55.7]} 10... Re8 {[%clk 0:03:00]} 11. Be3 {[%clk 0:02:51.9]} 11...
Bf8 {[%clk 0:02:59.2]} 12. Nd2 {[%clk 0:02:48.6]} 12... Qc7 {[%clk 0:02:52.2]}
13. Qf3 {[%clk 0:02:35.7]} 13... g6 {[%clk 0:02:37.2]} 14. Rad1 {[%clk
0:02:28.8]} 14... Bg7 {[%clk 0:02:37.1]} 15. d5 {[%clk 0:02:06.1]} 15... Nc5
{[%clk 0:02:31]} 16. Nc4 {[%clk 0:01:56]} 16... Nxb3 {[%clk 0:02:27.1]} 17. cxb3
{[%clk 0:01:55.8]} 17... c5 {[%clk 0:02:12.6]} 18. Nb5 {[%clk 0:01:48.5]} 18...
Qd8 {[%clk 0:02:12.8]} 19. Ncxd6 {[%clk 0:01:47.7]} 19... Rf8 {[%clk 0:02:11]}
20. Bxc5 {[%clk 0:01:45.4]} 20... Nd7 {[%clk 0:02:10.3]} 21. Ba3 {[%clk
0:01:40.3]} 21... b6 {[%clk 0:01:56.1]} 22. Nxc8 {[%clk 0:01:39.3]} 22... Rxc8
{[%clk 0:01:56.1]} 23. Bxf8 {[%clk 0:01:39.4]} 23... Bxf8 {[%clk 0:01:56.5]} 24.
Nd6 {[%clk 0:01:39.1]} 24... Bxd6 {[%clk 0:01:56.1]} 25. Rc1 {[%clk 0:01:37.9]}
25... Bc5 {[%clk 0:01:55.7]} 26. Rc2 {[%clk 0:01:28]} 26... Rb8 {[%clk
0:01:50.6]} 27. Rec1 {[%clk 0:01:27.4]} 27... Qe7 {[%clk 0:01:50.2]} 28. Kh1
{[%clk 0:01:23.8]} 28... Kg7 {[%clk 0:01:50.3]} 29. g3 {[%clk 0:01:13.3]} 29...
Nf6 {[%clk 0:01:49.1]} 30. Kg2 {[%clk 0:01:12.2]} 30... Ne8 {[%clk 0:01:49.2]}
31. Qc3 {[%clk 0:01:05.4]} 31... Nd6 {[%clk 0:01:47.3]} 32. Re2 {[%clk 0:01:02]}
32... Kh7 {[%clk 0:01:44.6]} 33. Qd3 {[%clk 0:00:55.6]} 33... Rf8 {[%clk
0:01:42.7]} 34. f4 {[%clk 0:00:54.7]} 34... f6 {[%clk 0:01:34.8]} 35. Rf1 {[%clk
0:00:52.3]} 35... Kg7 {[%clk 0:01:34.3]} 36. h4 {[%clk 0:00:37]} 36... Qd7
{[%clk 0:01:27.5]} 37. Qf3 {[%clk 0:00:34.6]} 37... Nf7 {[%clk 0:01:18.3]} 38.
f5 {[%clk 0:00:21.8]} 38... h5 {[%clk 0:01:09.3]} 39. fxg6 {[%clk 0:00:20.4]}
39... Kxg6 {[%clk 0:01:10.2]} 40. Qd3 {[%clk 0:00:19.5]} 40... Nh6 {[%clk
0:01:09.7]} 41. Rf3 {[%clk 0:00:19.7]} 41... Ng4 {[%clk 0:01:09.2]} 42. Re1
{[%clk 0:00:20.2]} 42... Qg7 {[%clk 0:01:06.8]} 43. Ref1 {[%clk 0:00:20.6]}
43... Qh6 {[%clk 0:01:06.7]} 44. Kh1 {[%clk 0:00:18.4]} 44... Rf7 {[%clk
0:01:06.6]} 45. Qb5 {[%clk 0:00:18.2]} 45... Qd2 {[%clk 0:01:06]} 46. Qc6 {[%clk
0:00:18.2]} 46... Qh2# {[%clk 0:01:05.4]} 0-1

[Event "*** Titled Tuesday Blitz"]
[Site "Chess.com"]
[Date "2020.11.10"]
[Round "1"]
[White "VitaliyBernadskiy"]
[Black "yobdc"]
[Result "1-0"]
[WhiteElo "2747"]
[BlackElo "2390"]
[TimeControl "180+1"]
[EndTime "10:06:37 PST"]
[Termination "VitaliyBernadskiy won by checkmate"]

1. e4 {[%clk 0:03:00.4]} 1... d5 {[%clk 0:02:58.7]} 2. exd5 {[%clk 0:03:00]}
2... Qxd5 {[%clk 0:02:59.6]} 3. Nc3 {[%clk 0:03:00.1]} 3... Qd6 {[%clk
0:02:59.9]} 4. Nf3 {[%clk 0:03:01]} 4... c6 {[%clk 0:03:00.3]} 5. g3 {[%clk
0:03:01]} 5... Nf6 {[%clk 0:03:00]} 6. Bg2 {[%clk 0:03:00.9]} 6... Bg4 {[%clk
0:03:00.6]} 7. h3 {[%clk 0:03:00.5]} 7... Bh5 {[%clk 0:03:00.5]} 8. O-O {[%clk
0:03:00.2]} 8... e6 {[%clk 0:03:00.8]} 9. d4 {[%clk 0:03:00.4]} 9... Be7 {[%clk
0:03:01.2]} 10. Ne2 {[%clk 0:02:57.1]} 10... O-O {[%clk 0:02:59.3]} 11. Nf4
{[%clk 0:02:52.9]} 11... Bxf3 {[%clk 0:02:58.7]} 12. Bxf3 {[%clk 0:02:52.7]}
12... Nbd7 {[%clk 0:02:58.2]} 13. Bg2 {[%clk 0:02:50.8]} 13... Rad8 {[%clk
0:02:57.2]} 14. c3 {[%clk 0:02:49.1]} 14... Qc7 {[%clk 0:02:56.5]} 15. Qe2
{[%clk 0:02:48.4]} 15... Rfe8 {[%clk 0:02:55.4]} 16. Re1 {[%clk 0:02:46.7]}
16... Bf8 {[%clk 0:02:55.1]} 17. Nd3 {[%clk 0:02:45.2]} 17... Nd5 {[%clk
0:02:51.3]} 18. Bd2 {[%clk 0:02:40.7]} 18... h6 {[%clk 0:02:38.1]} 19. c4 {[%clk
0:02:36.9]} 19... N5f6 {[%clk 0:02:35.8]} 20. b3 {[%clk 0:02:33]} 20... c5
{[%clk 0:02:35.5]} 21. Bc3 {[%clk 0:02:27.3]} 21... cxd4 {[%clk 0:02:35.3]} 22.
Bxd4 {[%clk 0:02:28.2]} 22... b6 {[%clk 0:02:30.8]} 23. Rad1 {[%clk 0:02:27.1]}
23... Nc5 {[%clk 0:02:18.4]} 24. Bxf6 {[%clk 0:02:20]} 24... gxf6 {[%clk
0:02:19.3]} 25. Nf4 {[%clk 0:02:16.4]} 25... f5 {[%clk 0:02:14.5]} 26. Nh5
{[%clk 0:02:12.9]} 26... Bg7 {[%clk 0:02:09.8]} 27. g4 {[%clk 0:02:05.5]} 27...
Rxd1 {[%clk 0:01:56.1]} 28. Rxd1 {[%clk 0:02:03.6]} 28... Rd8 {[%clk 0:01:54.6]}
29. Rxd8+ {[%clk 0:01:58.7]} 29... Qxd8 {[%clk 0:01:55.5]} 30. gxf5 {[%clk
0:01:56.6]} 30... exf5 {[%clk 0:01:56.4]} 31. Nxg7 {[%clk 0:01:41]} 31... Kxg7
{[%clk 0:01:57.3]} 32. b4 {[%clk 0:01:37.7]} 32... Ne6 {[%clk 0:01:54.8]} 33. c5
{[%clk 0:01:37.4]} 33... bxc5 {[%clk 0:01:52.5]} 34. bxc5 {[%clk 0:01:38.3]}
34... Qd4 {[%clk 0:01:31.9]} 35. c6 {[%clk 0:01:34.9]} 35... Kf6 {[%clk
0:01:19.1]} 36. Qh5 {[%clk 0:01:18.2]} 36... Qa1+ {[%clk 0:01:16.1]} 37. Bf1
{[%clk 0:01:17.5]} 37... Qc1 {[%clk 0:01:14.2]} 38. h4 {[%clk 0:00:44.6]} 38...
Nd4 {[%clk 0:00:56]} 39. c7 {[%clk 0:00:43.8]} 39... Qxc7 {[%clk 0:00:51.2]} 40.
Qxh6+ {[%clk 0:00:43.6]} 40... Ke7 {[%clk 0:00:49]} 41. Qg5+ {[%clk 0:00:43.1]}
41... Ke6 {[%clk 0:00:47.7]} 42. Qe3+ {[%clk 0:00:41.3]} 42... Qe5 {[%clk
0:00:44.3]} 43. Bc4+ {[%clk 0:00:40.8]} 43... Kf6 {[%clk 0:00:44.3]} 44. Qg5#
{[%clk 0:00:37.8]} 1-0